bitfinex/quotes_SOLUSD_20251031
["timestamp","ask_amount","ask_price","bid_price","bid_amount"]
[1761933551258,15.17289397,185.74,185.7,4.09387267]
[1761933551726,15.17289397,185.74,185.69,3.40387267]
[1761933551930,15.17289397,185.74,185.68,3.40387267]
[1761933551931,0.28432314,185.73,185.68,3.40387267]
[1761933552127,3.68819581,185.73,185.67,3.40387267]
[1761933552330,10.07315083,185.71,185.67,0.69]
[1761933553258,15.45816157,185.71,185.67,0.69]
[1761933553436,15.45816157,185.71,185.64,0.2]
[1761933553437,19.52203424,185.71,185.64,3.60387267]
[1761933553757,3.40387267,185.7,185.65,0.69]
[1761933554130,0.66,185.7,185.65,0.69]
[1761933555156,4.06387267,185.7,185.65,0.69]
[1761933555358,5.38531961,185.69,185.65,0.69]
[1761933557746,26.93887261,185.71,185.65,4.09387267]
[1761933557933,10.07315083,185.71,185.65,4.09387267]
[1761933558263,10.07315083,185.71,185.66,0.67]
[1761933558579,5.38511479,185.7,185.66,0.67]
[1761933558766,10.07315083,185.71,185.66,4.07387267]
[1761933558942,9.78882769,185.74,185.7,3.40387267]
[1761933559139,10.49882769,185.74,185.69,3.40387267]
[1761933559344,0.28432314,185.73,185.69,3.40387267]
[1761933559552,0.14216157,185.73,185.7,0.67]
[1761933559961,5.66864668,185.73,185.7,0.67]
[1761933563460,9.78882769,185.78,185.72,3.40387267]
[1761933563760,15.17153842,185.78,185.74,3.40387267]
[1761933563968,15.17153842,185.78,185.74,4.07387267]
[1761933564146,15.17153842,185.78,185.74,0.67]
[1761933564672,15.88153842,185.78,185.74,0.67]
[1761933565053,15.88153842,185.78,185.73,3.40387267]
[1761933565368,15.17153842,185.78,185.74,0.69]
[1761933566660,0.28432314,185.79,185.75,3.40387267]
[1761933566848,0.28432314,185.79,185.74,4.09387267]
[1761933566849,10.07315083,185.79,185.74,4.09387267]
[1761933567055,0.72,185.78,185.74,0.69]
[1761933567456,4.12387267,185.78,185.72,4.09387267]
[1761933568371,5.38300048,185.77,185.72,4.09387267]
[1761933568546,5.38300048,185.77,185.72,3.40387267]
[1761933568869,5.38300048,185.77,185.73,4.09387267]
[1761933569247,5.38300048,185.77,185.74,0.69]
[1761933569557,5.38300048,185.77,185.73,4.09387267]
[1761933569743,5.38271073,185.78,185.73,0.69]
[1761933570353,6.10271073,185.78,185.73,0.69]
[1761933570557,5.38271073,185.78,185.73,0.69]
[1761933570766,6.10271073,185.78,185.73,0.69]
[1761933571142,6.10271073,185.78,185.73,4.09387267]
[1761933571651,14.1970235,185.77,185.73,0.69]
[1761933572453,10.07315083,185.77,185.73,0.69]
[1761933573356,5.38329026,185.76,185.73,0.69]
[1761933574651,5.38329026,185.76,185.73,4.09387267]
[1761933577081,5.38329026,185.76,185.73,0.69]
[1761933579062,3.40387267,185.74,185.68,0.69]
[1761933579261,3.40387267,185.74,185.68,4.09387267]
[1761933579471,4.12387267,185.74,185.68,4.09387267]
[1761933580060,10.07315083,185.73,185.69,0.69]
[1761933580458,15.45748585,185.73,185.69,0.69]
[1761933580654,15.45748585,185.73,185.69,4.09387267]
[1761933581353,15.45748585,185.73,185.69,0.69]
[1761933582156,16.17748585,185.73,185.69,0.69]
[1761933582494,15.45748585,185.73,185.68,3.40387267]
[1761933582661,15.45748585,185.73,185.68,4.09387267]
[1761933582851,0.72,185.72,185.68,4.09387267]
[1761933583272,4.12387267,185.72,185.68,0.69]
[1761933583545,3.40387267,185.7,185.66,0.69]
[1761933583872,13.19270036,185.71,185.67,0.69]
[1761933584072,9.78882769,185.71,185.67,0.69]
[1761933584479,15.17378748,185.71,185.67,0.69]
[1761933584780,15.17363069,185.71,185.67,0.69]
[1761933587993,5.38451843,185.72,185.67,9.47971425]
[1761933588171,5.38451843,185.72,185.68,3.40387267]
[1761933588480,5.38451843,185.72,185.68,4.09387267]
[1761933588788,5.38451843,185.72,185.69,0.69]
[1761933589283,9.5083911,185.72,185.66,9.47998237]
[1761933589464,3.40387267,185.71,185.68,0.69]
[1761933589881,8.7883911,185.72,185.68,0.69]
[1761933590361,9.5083911,185.72,185.68,0.69]
[1761933591889,5.38502961,185.7,185.66,0.69]
[1761933592079,3.40387267,185.69,185.66,0.69]
[1761933593078,8.78890228,185.7,185.66,0.69]
[1761933593777,18.8617389,185.72,185.66,9.47994641]
[1761933594391,18.8617389,185.72,185.67,0.69]
[1761933594596,19.5817389,185.72,185.67,0.69]
[1761933594888,13.4770235,185.7,185.67,0.69]
[1761933595193,13.4770235,185.7,185.65,0.69]
[1761933595494,3.40387267,185.69,185.66,0.67]
[1761933596182,5.38531961,185.69,185.66,0.67]
[1761933596384,8.78919228,185.69,185.66,0.67]
[1761933597195,9.48919228,185.69,185.64,9.66059891]
[1761933597368,4.10387267,185.68,185.64,0.87]
[1761933598793,3.40387267,185.68,185.65,0.67]
[1761933599289,5.38531961,185.69,185.65,0.67]
[1761933599968,5.38509625,185.7,185.65,4.07387267]
[1761933600165,5.38509625,185.7,185.65,6.05647485]
[1761933600365,5.38509625,185.7,185.66,0.67]
[1761933600669,4.10387267,185.69,185.64,0.2]
[1761933602273,5.38560965,185.68,185.65,0.67]
[1761933602765,0.7,185.77,185.67,3.40387267]
[1761933603070,5.38213132,185.8,185.76,3.40387267]
[1761933603284,0.7,185.81,185.78,3.40387267]
[1761933603285,6.08191432,185.81,185.78,3.40387267]
[1761933603624,6.08103928,185.84,185.8,2.17371856]
[1761933603780,6.08103928,185.84,185.79,0.67]
[1761933603781,6.08103928,185.84,185.79,2.84371856]
[1761933603980,20.592,185.83,185.8,2.17371856]
[1761933604179,20.592,185.83,185.8,2.84371856]
[1761933604374,20.592,185.83,185.8,0.67]
[1761933604606,20.592,185.83,185.78,0.67]
[1761933604894,20.592,185.83,185.79,2.17371856]
[1761933605071,5.48073257,185.85,185.8,0.67]
[1761933605275,5.38126244,185.83,185.79,2.17371856]
[1761933605478,10.48882769,185.84,185.79,2.84371856]
[1761933605670,9.88882769,185.85,185.8,2.84371856]
[1761933605862,9.88882769,185.85,185.8,0.67]
[1761933605863,10.58882769,185.85,185.8,0.67]
[1761933606061,0.7,185.84,185.8,0.67]
[1761933606283,10.07315083,185.83,185.78,2.84371856]
[1761933606484,10.07315083,185.83,185.78,2.17371856]
[1761933606679,0.1,185.85,185.8,2.17371856]
[1761933606883,0.1,185.85,185.84,2.17371856]
[1761933607068,0.1,185.85,185.84,2.84371856]
[1761933607697,0.1,185.85,185.84,8.22469143]
[1761933608495,0.1,185.85,185.84,16.91956567]
[1761933608889,0.1,185.89,185.84,37.65372724]
[1761933609205,0.1,185.89,185.88,2.17371856]
[1761933609375,0.1,185.89,185.88,8.22353349]
[1761933610205,0.1,185.89,185.88,8.36569506]
[1761933610498,0.1,185.89,185.88,8.22353349]
[1761933611481,0.1,185.89,185.88,0.67]
[1761933611676,0.1,185.89,185.87,5.52694411]
[1761933611876,5.62694411,185.89,185.83,5.52694411]
[1761933612097,0.1,185.89,185.84,6.19694411]
[1761933612398,0.1,185.89,185.86,5.52694411]
[1761933612602,0.1,185.89,185.81,18.83644582]
[1761933612603,0.1,185.89,185.88,5.52694411]
[1761933612815,0.1,185.89,185.87,5.52694411]
[1761933612978,5.52694411,185.88,185.83,6.19694411]
[1761933613181,5.52694411,185.88,185.82,5.52694411]
[1761933613482,5.52694411,185.87,185.83,0.67]
[1761933614003,6.17963001,185.89,185.83,0.67]
[1761933614004,15.60009494,185.88,185.83,0.67]
[1761933614224,15.60009494,185.88,185.83,6.19694411]
[1761933614380,10.07315083,185.88,185.83,6.19694411]
[1761933614579,10.07315083,185.88,185.84,0.67]
[1761933614775,16.30009494,185.88,185.83,5.52694411]
[1761933614995,16.30009494,185.88,185.83,6.19694411]
[1761933615208,15.60009494,185.88,185.83,6.19694411]
[1761933615516,15.45301846,185.88,185.84,0.67]
[1761933615823,21.67996257,185.88,185.83,0.67]
[1761933616307,5.52694411,185.84,185.77,0.67]
[1761933616477,5.52694411,185.83,185.78,5.52694411]
[1761933616875,6.22694411,185.83,185.78,5.52694411]
[1761933617188,5.52694411,185.83,185.79,0.67]
[1761933617383,15.60009494,185.86,185.8,5.52694411]
[1761933617574,15.60009494,185.86,185.79,0.67]
[1761933617575,10.07315083,185.86,185.81,5.52694411]
[1761933617779,20.592,185.88,185.84,5.52694411]
[1761933617986,0.1,185.89,185.85,5.52694411]
[1761933618187,0.1,185.89,185.87,5.52694411]
[1761933618912,0.1,185.89,185.79,24.36535715]
[1761933618913,0.1,185.89,185.88,6.19694411]
[1761933619493,0.1,185.89,185.88,11.57675904]
[1761933623201,0.1,185.89,185.88,73.37675904]
[1761933623426,0.1,185.89,185.88,11.71892061]
[1761933624432,0.1,185.94,185.89,0.14216157]
[1761933624715,0.1,185.94,185.93,5.52694411]
[1761933625103,0.1,185.94,185.93,6.19694411]
[1761933625512,0.1,185.94,185.93,11.57531231]
[1761933625825,0.1,185.94,185.93,5.52694411]
[1761933626124,0.1,185.94,185.93,10.90531231]
[1761933626306,0.1,185.94,185.93,5.52694411]
[1761933626505,0.1,185.94,185.93,10.90531231]
[1761933626687,0.1,185.94,185.93,11.60531231]
[1761933627386,0.1,185.94,185.93,5.52694411]
[1761933627794,0.1,185.94,185.93,10.90531231]
[1761933627990,0.1,185.94,185.92,5.52694411]
[1761933628421,0.1,185.94,185.93,5.52694411]
[1761933628796,0.1,185.94,185.89,13.44866795]
[1761933628797,0.1,185.94,185.89,0.7]
[1761933628999,0.1,185.94,185.91,5.52694411]
[1761933629202,0.77,185.94,185.91,5.52694411]
[1761933629420,0.77,185.94,185.9,5.52694411]
[1761933629730,0.77,185.94,185.89,5.52694411]
[1761933630351,0.77,185.94,185.9,5.52694411]
[1761933630502,0.1,185.94,185.9,5.52694411]
[1761933630839,0.1,185.94,185.91,5.52694411]
[1761933631043,0.77,185.94,185.91,5.52694411]
[1761933631425,0.1,185.94,185.92,5.52694411]
[1761933631626,0.1,185.94,185.93,5.52694411]
[1761933631815,0.1,185.94,185.92,5.52694411]
[1761933634323,0.1,185.94,185.92,11.60557938]
[1761933634631,0.1,185.94,185.93,5.52694411]
[1761933635034,0.1,185.94,185.92,5.37863396]
[1761933635328,0.1,185.94,185.92,5.52694411]
[1761933635530,0.1,185.94,185.9,6.07900059]
[1761933635531,0.67,185.93,185.9,5.52694411]
[1761933635732,0.1,185.94,185.91,5.52694411]
[1761933635939,0.77,185.94,185.91,5.52694411]
[1761933636111,0.77,185.94,185.9,10.906164]
[1761933636511,0.77,185.94,185.9,11.606164]
[1761933636712,0.1,185.94,185.91,5.52694411]
[1761933636923,0.1,185.94,185.92,5.52694411]
[1761933637130,0.1,185.94,185.93,5.52694411]
[1761933637334,0.1,185.94,185.93,6.22694411]
[1761933637541,0.1,185.94,185.93,5.52694411]
[1761933638413,0.1,185.94,185.91,5.37884863]
[1761933638630,6.19694411,185.93,185.85,67.18061332]
[1761933638824,5.52694411,185.87,185.82,5.52694411]
[1761933639033,6.19694411,185.86,185.81,6.22694411]
[1761933639344,0.67,185.86,185.81,6.22694411]
[1761933639513,15.60009494,185.87,185.81,6.22694411]
[1761933639712,15.60009494,185.87,185.79,6.08242101]
[1761933639713,0.67,185.85,185.79,6.08242101]
[1761933639936,0.67,185.85,185.81,5.52694411]
[1761933640139,11.57768085,185.85,185.79,11.60936512]
[1761933640523,6.19694411,185.84,185.79,10.90936512]
[1761933640720,5.52694411,185.83,185.77,6.22694411]
[1761933640918,5.52694411,185.82,185.77,5.52694411]
[1761933641126,0.67,185.81,185.76,5.52694411]
[1761933641523,0.67,185.81,185.77,0.7]
[1761933641733,0.28432314,185.84,185.77,6.22694411]
[1761933641734,6.19694411,185.83,185.77,6.22694411]
[1761933641942,11.57847046,185.83,185.77,5.52694411]
[1761933642244,0.28432314,185.84,185.78,6.22694411]
[1761933642437,6.48126725,185.84,185.79,5.52694411]
[1761933642620,5.52694411,185.83,185.78,5.52694411]
[1761933642816,5.52694411,185.81,185.76,5.52694411]
[1761933643023,5.52694411,185.81,185.76,10.91022454]
[1761933643240,5.52694411,185.81,185.77,5.52694411]
[1761933643241,0.67,185.81,185.77,5.52694411]
[1761933643441,0.67,185.81,185.76,6.08322366]
[1761933643650,0.67,185.81,185.77,5.52694411]
[1761933644024,6.19694411,185.83,185.78,5.52694411]
[1761933644219,6.0513043,185.83,185.78,5.52694411]
[1761933644435,0.28432314,185.84,185.78,5.52694411]
[1761933644436,0.67,185.82,185.78,5.52694411]
[1761933645119,5.66535301,185.84,185.79,6.22694411]
[1761933645320,5.66542021,185.84,185.8,5.52694411]
[1761933645549,0.67,185.84,185.82,5.52694411]
[1761933645855,0.67,185.86,185.82,5.52694411]
[1761933646230,6.05040869,185.86,185.81,5.52694411]
[1761933646423,0.67,185.86,185.81,5.52694411]
[1761933646631,0.67,185.88,185.84,5.52694411]
[1761933646938,0.67,185.88,185.83,5.52694411]
[1761933647155,0.81216157,185.88,185.84,5.52694411]
[1761933647338,6.33421619,185.88,185.84,5.52694411]
[1761933647658,6.33421619,185.88,185.82,0.7]
[1761933647659,0.67,185.88,185.83,10.9081677]
[1761933647955,5.37907832,185.91,185.87,5.52694411]
[1761933648154,0.67,185.9,185.86,5.52694411]
[1761933649836,0.67,185.9,185.87,5.52694411]
[1761933650950,0.67,185.9,185.86,5.52694411]
[1761933651538,0.67,185.9,185.85,5.38041654]
[1761933651853,0.67,185.9,185.87,5.52694411]
[1761933652146,5.66328915,185.91,185.87,5.52694411]
[1761933652348,0.28432314,185.91,185.88,5.52694411]
[1761933652856,0.95432314,185.91,185.88,5.52694411]
[1761933653231,0.28432314,185.91,185.88,5.52694411]
[1761933653548,0.1,185.94,185.9,5.52694411]
[1761933653721,0.1,185.94,185.91,6.0789468]
[1761933653925,0.1,185.94,185.93,5.52694411]
[1761933654144,0.1,185.94,185.9,6.07920575]
[1761933654348,0.1,185.94,185.93,5.52694411]
[1761933655127,0.1,185.94,185.91,0.7]
[1761933655343,0.1,185.94,185.93,5.52694411]
[1761933655934,0.76,185.94,185.92,5.52694411]
[1761933656143,0.1,185.94,185.91,5.52694411]
[1761933656344,0.1,185.94,185.92,5.52694411]
[1761933656654,0.1,185.94,185.93,5.52694411]
[1761933657036,0.76,185.94,185.91,5.52694411]
[1761933657955,0.76,185.94,185.9,5.52694411]
[1761933657956,6.1381523,185.94,185.9,5.52694411]
[1761933658130,0.66,185.93,185.87,6.03987117]
[1761933658331,0.66,185.93,185.87,0.66]
[1761933658532,0.66,185.93,185.89,5.52694411]
[1761933658755,0.94432314,185.93,185.87,5.52694411]
[1761933658938,0.94432314,185.93,185.88,5.52694411]
[1761933659142,0.66,185.92,185.88,5.52694411]
[1761933659342,0.66,185.92,185.89,5.52694411]
[1761933659849,6.0386822,185.92,185.89,5.52694411]
[1761933660043,6.0386822,185.92,185.88,5.52694411]
[1761933660247,0.94432314,185.91,185.87,5.52694411]
[1761933660441,0.28432314,185.93,185.89,5.52694411]
[1761933660647,0.38432314,185.94,185.92,5.52694411]
[1761933660865,0.38432314,185.94,185.93,5.52694411]
[1761933660866,0.1,185.94,185.93,5.52694411]
[1761933662052,0.1,185.94,185.93,6.18694411]
[1761933663040,0.1,185.94,185.93,5.52694411]
[1761933664838,0.1,185.94,185.89,0.66]
[1761933665136,0.1,185.94,185.87,13.45001855]
[1761933665137,0.1,185.94,185.92,5.52694411]
[1761933665466,0.1,185.94,185.92,8.39685061]
[1761933666345,0.76,185.94,185.92,8.39685061]
[1761933666657,0.1,185.94,185.93,8.39685061]
[1761933668744,0.1,185.94,185.92,8.39685061]
[1761933668950,0.76,185.94,185.92,8.39685061]
[1761933669662,0.1,185.94,185.9,6.03923424]
[1761933669986,0.1,185.94,185.93,8.39685061]
[1761933671275,0.1,185.94,185.93,9.06685061]
[1761933671765,0.1,185.94,185.93,14.44521881]
[1761933673787,0.1,186.0,185.93,54.78298032]
[1761933674087,0.1,186.0,185.99,8.39685061]
[1761933674453,0.1,186.0,185.96,8.39685061]
[1761933674454,0.76,186.0,185.96,8.39685061]
[1761933674649,0.76,186.0,185.95,8.39685061]
[1761933675082,6.13646286,186.0,185.94,8.39685061]
[1761933675278,14.53331347,186.0,185.93,8.39685061]
[1761933675584,0.66,185.99,185.94,8.39685061]
[1761933675786,6.03679239,185.99,185.95,8.39685061]
[1761933675968,0.66,185.99,185.95,8.39685061]
[1761933676480,0.66,185.99,185.96,8.39685061]
[1761933676857,5.76069558,186.0,185.96,8.39685061]
[1761933677057,6.42069558,186.0,185.96,8.39685061]
[1761933677282,0.66,185.99,185.94,8.39685061]
[1761933677592,0.28432314,185.98,185.93,8.39685061]
[1761933677885,5.66142231,185.98,185.93,8.39685061]
[1761933678183,0.66,185.97,185.93,8.39685061]
[1761933678889,0.66,185.97,185.91,8.39685061]
[1761933679386,0.94432314,185.97,185.92,9.06685061]
[1761933679882,6.32170792,185.97,185.93,8.39685061]
[1761933680059,0.66,185.96,185.92,9.06685061]
[1761933681256,0.66,185.96,185.92,8.39685061]
[1761933681877,0.66,185.96,185.91,13.77578628]
[1761933682081,6.03769966,185.96,185.91,8.39685061]
[1761933682558,5.37769966,185.96,185.91,9.10685061]
[1761933682756,0.67,185.95,185.91,8.39685061]
[1761933683186,5.37769966,185.96,185.91,14.485768]
[1761933683383,5.37769966,185.96,185.91,9.10685061]
[1761933683563,0.67,185.95,185.91,9.10685061]
[1761933684074,5.37769966,185.96,185.91,14.48576598]
[1761933684283,6.04769966,185.96,185.91,14.48576598]
[1761933684592,14.44455027,185.96,185.91,6.08891537]
[1761933685164,6.04769966,185.96,185.91,6.08891537]
[1761933685456,8.68117375,185.97,185.92,0.68]
[1761933685678,20.592,185.98,185.93,8.39685061]
[1761933685879,5.4763603,186.0,185.94,8.39685061]
[1761933686082,8.39685061,185.99,185.92,9.07685061]
[1761933686283,8.39685061,185.99,185.93,0.68]
[1761933686487,14.56321091,186.0,185.93,9.07685061]
[1761933686786,9.18685061,186.0,185.94,8.39685061]
[1761933687094,0.1,186.0,185.95,8.39685061]
[1761933687387,0.1,186.0,185.97,8.39685061]
[1761933687593,0.1,186.0,185.99,8.39685061]
[1761933687970,0.1,186.0,185.98,8.39685061]
[1761933688476,0.79,186.0,185.95,0.68]
[1761933688775,8.39685061,185.98,185.92,6.05865748]
[1761933688980,14.56322264,186.0,185.93,9.07685061]
[1761933689178,21.66632314,186.0,185.94,8.39685061]
[1761933689493,27.04282384,186.0,185.94,14.45491692]
[1761933689680,0.69,185.99,185.94,0.68]
[1761933689987,0.69,185.99,185.94,6.05803498]
[1761933690191,29.37317375,186.0,185.94,6.05803498]
[1761933690392,20.97632314,186.0,185.94,0.68]
[1761933690596,20.97632314,186.0,185.89,20.592]
[1761933690597,9.08685061,185.99,185.93,14.455182]
[1761933690897,0.69,185.99,185.93,14.455182]
[1761933691595,0.69,185.99,185.94,0.68]
[1761933692295,6.06672452,185.99,185.94,0.68]
[1761933692490,0.69,185.99,185.94,0.68]
[1761933692794,26.35266846,186.0,185.94,0.68]
[1761933693095,34.74951907,186.0,185.94,0.68]
[1761933693398,0.1,186.0,185.98,8.39685061]
[1761933693722,0.1,186.0,185.94,0.68]
[1761933693723,0.1,186.0,185.96,8.39685061]
[1761933694063,0.1,186.0,185.97,9.07685061]
[1761933694566,0.1,186.0,185.98,9.07685061]
[1761933694971,0.1,186.0,185.99,0.68]
[1761933695180,0.1,186.0,185.96,9.07685061]
[1761933695592,0.1,186.0,185.97,14.45404451]
[1761933696094,0.1,186.0,185.98,0.68]
[1761933696609,0.79,186.0,185.94,9.07685061]
[1761933696793,9.18685061,186.0,185.94,0.68]
[1761933697179,0.79,186.0,185.95,8.39685061]
[1761933697520,0.1,186.0,185.95,8.39685061]
[1761933697726,5.47641569,186.0,185.96,0.68]
[1761933697893,6.16641569,186.0,185.96,0.68]
[1761933698330,6.16641569,186.0,185.95,8.39685061]
[1761933698495,6.16641569,186.0,185.95,9.07685061]
[1761933699634,13.8732663,186.0,185.94,8.39685061]
[1761933699829,9.08685061,185.99,185.93,8.39685061]
[1761933700904,8.39685061,185.98,185.93,5.37834514]
[1761933701302,8.39685061,185.98,185.93,0.68]
[1761933701496,18.81846252,185.99,185.91,8.39685061]
[1761933701497,9.08685061,185.97,185.91,8.39685061]
[1761933701708,8.39685061,185.95,185.89,0.68]
[1761933701926,9.08685061,185.94,185.88,13.77662322]
[1761933702221,9.08685061,185.94,185.89,0.68]
[1761933702795,14.46505412,185.94,185.89,0.68]
[1761933703233,8.39685061,185.9,185.85,0.68]
[1761933703419,8.39685061,185.89,185.83,0.68]
[1761933703750,30.52298926,185.92,185.82,8.39685061]
[1761933703751,31.21298926,185.92,185.82,8.39685061]
[1761933703918,8.39685061,185.86,185.8,9.07685061]
[1761933704129,20.592,185.89,185.8,9.07685061]
[1761933704130,8.39685061,185.87,185.8,9.07685061]
[1761933704298,20.592,185.89,185.81,9.07685061]
[1761933704299,9.08685061,185.88,185.81,9.07685061]
[1761933704499,9.08685061,185.88,185.82,8.39685061]
[1761933704717,9.08685061,185.88,185.82,9.07685061]
[1761933705011,14.4666681,185.88,185.82,9.07685061]
[1761933705218,8.39685061,185.87,185.82,0.68]
[1761933705610,8.39685061,185.87,185.79,5.38238382]
[1761933705806,8.39685061,185.85,185.8,0.68]
[1761933706027,8.39685061,185.84,185.8,0.68]
[1761933706343,8.39685061,185.84,185.78,6.0626644]
[1761933706643,8.39685061,185.84,185.79,0.68]
[1761933706811,8.39685061,185.86,185.8,5.38213132]
[1761933707132,8.39685061,185.86,185.8,13.77898193]
[1761933707332,8.39685061,185.86,185.81,0.68]
[1761933707542,0.28432314,185.87,185.81,0.68]
[1761933707832,8.68117375,185.87,185.81,0.68]
[1761933708014,8.39685061,185.86,185.81,0.68]
[1761933708433,28.98885061,185.89,185.82,8.39685061]
[1761933708637,20.592,185.89,185.83,9.07685061]
[1761933709136,20.592,185.89,185.84,0.68]
[1761933709137,34.36842333,185.89,185.84,0.68]
[1761933709521,28.98885061,185.89,185.84,0.68]
[1761933709714,13.77613107,185.9,185.84,0.68]
[1761933710045,8.39685061,185.9,185.84,9.07685061]
[1761933710541,13.77612031,185.9,185.85,0.68]
[1761933710924,0.69,185.91,185.85,0.68]
[1761933710925,0.14216157,185.91,185.86,5.38039384]
[1761933711117,20.592,185.9,185.86,13.77724445]
[1761933711535,20.592,185.9,185.87,0.68]
[1761933711815,26.11253528,185.93,185.87,9.07685061]
[1761933712015,20.73416157,185.93,185.88,0.68]
[1761933712423,20.73416157,185.93,185.88,9.07685061]
[1761933712917,13.77406198,185.97,185.9,13.7760453]
[1761933713145,13.77406198,185.97,185.89,0.68]
[1761933713146,9.08685061,185.96,185.89,0.68]
[1761933713442,8.39685061,185.94,185.89,0.68]
[1761933713921,9.08685061,185.94,185.89,0.68]
[1761933714116,0.69,185.94,185.89,6.05943512]
[1761933714326,9.22901218,185.96,185.89,9.07685061]
[1761933714747,8.39685061,185.95,185.89,6.0595193]
[1761933715233,13.7748892,185.95,185.89,0.68]
[1761933716958,8.39685061,185.95,185.89,14.45630304]
[1761933717117,20.592,185.97,185.92,8.39685061]
[1761933717323,5.5191446,185.98,185.92,8.39685061]
[1761933717522,6.2191446,185.98,185.92,9.08685061]
[1761933717722,0.7,185.97,185.91,8.39685061]
[1761933717930,9.09685061,185.97,185.9,9.08685061]
[1761933718146,9.09685061,185.97,185.91,0.69]
[1761933718644,8.39685061,185.94,185.88,0.69]
[1761933718815,8.39685061,185.94,185.89,0.69]
[1761933719222,13.77521881,185.93,185.89,0.69]
[1761933719452,14.47521881,185.93,185.89,0.69]
[1761933719745,8.39685061,185.91,185.86,0.69]
[1761933720430,8.39685061,185.91,185.76,28.91588588]
[1761933720431,8.39685061,185.87,185.8,0.69]
[1761933720628,8.39685061,185.85,185.8,0.69]
[1761933720948,30.52298926,185.91,185.8,0.69]
[1761933720949,8.39685061,185.84,185.8,0.69]
[1761933721155,8.39685061,185.81,185.74,5.38386992]
[1761933721322,8.39685061,185.81,185.76,0.69]
[1761933721521,8.39685061,185.78,185.73,0.69]
[1761933721922,8.39685061,185.77,185.73,0.69]
[1761933722832,8.39685061,185.76,185.73,0.69]
[1761933723149,8.39685061,185.77,185.73,0.69]
[1761933723329,8.39685061,185.76,185.72,0.2]
[1761933723531,8.39685061,185.74,185.72,0.2]
[1761933723736,8.39685061,185.73,185.72,0.2]
[1761933724242,8.39685061,185.74,185.72,0.2]
[1761933724442,8.39685061,185.73,185.72,0.2]
[1761933724629,19.17000144,185.73,185.72,0.2]
[1761933724833,45.14616124,185.73,185.72,0.2]
[1761933726534,24.69632281,185.73,185.72,0.2]
[1761933727266,4.50928275,185.93,185.74,0.28432314]
[1761933727432,5.52796599,185.98,185.97,1.99999999]
[1761933727760,0.1,186.01,185.96,1.99999999]
[1761933727956,0.1,186.01,185.95,7.52796598]
[1761933728269,0.1,186.01,185.97,7.52796598]
[1761933728564,0.1,186.01,185.98,1.99999999]
[1761933728729,0.1,186.01,185.99,1.99999999]
[1761933728926,0.1,186.01,185.98,7.52796598]
[1761933729153,11.44,185.99,185.96,7.52796598]
[1761933729463,11.44,185.99,185.96,1.99999999]
[1761933729764,11.44,185.99,185.97,1.99999999]
[1761933731658,11.44,185.99,185.94,10.90603907]
[1761933731659,0.45,185.98,185.94,1.99999999]
[1761933731838,11.42,185.97,185.94,1.99999999]
[1761933732043,11.42,185.97,185.95,1.99999999]
[1761933733359,24.36,186.0,185.97,1.99999999]
[1761933733563,11.42,185.99,185.97,1.99999999]
[1761933736165,5.97796599,185.98,185.95,1.99999999]
[1761933736373,5.52796599,185.97,185.95,1.99999999]
[1761933736671,11.42,185.96,185.95,1.99999999]
[1761933740548,11.42,185.96,185.95,2.68999999]
[1761933741047,11.42,185.96,185.95,1.99999999]
[1761933741469,11.42,185.96,185.93,6.21796599]
[1761933741470,22.32546652,185.96,185.93,1.99999999]
[1761933741653,5.52796599,185.94,185.9,1.99999999]
[1761933741850,21.042,185.95,185.88,1.99999999]
[1761933741851,5.52796599,185.91,185.88,1.99999999]
[1761933742071,11.38,185.9,185.89,1.99999999]
[1761933742372,11.38,185.9,185.87,1.99999999]
[1761933742542,11.38,185.9,185.89,1.99999999]
[1761933742874,20.592,185.95,185.92,1.99999999]
[1761933743168,0.1,186.0,185.93,8.21796598]
[1761933743169,35.62,185.94,185.93,8.21796598]
[1761933743379,0.1,186.0,185.97,1.99999999]
[1761933743587,35.62,185.99,185.97,1.99999999]